fUSD/lending_fUSD_20250821
["ID","MTS","AMOUNT","RATE_DAILY","PERIOD"]
[380402598,1755741031933,-161.47,0.0001074,2]
[380402600,1755741031942,-161.47,0.00010755,2]
[380402602,1755741031953,-300.0,0.00010769,2]
[380402604,1755741031963,-161.47,0.0001077,2]
[380402606,1755741031973,-161.47,0.00010785,2]
[380402608,1755741031982,-1200.0,0.000108,3]
[380402610,1755741031991,-161.47,0.00010801,2]
[380402612,1755741032002,-168.44,0.00010807,2]
[380402614,1755741032014,-3.26850156,0.00010816,2]
[380402617,1755741032028,-158.20149844,0.00010816,2]
[380402618,1755741032037,-161.47,0.00010831,2]
[380402619,1755741032046,-161.47,0.00010846,2]
[380402620,1755741032056,-161.47,0.00010861,2]
[380402621,1755741032069,-114.48575821,0.00010861,2]
[380402622,1755741032237,-59.95424179,0.00010861,2]
[380402623,1755741032247,-165.99,0.00010875,2]
[380402624,1755741032256,-858.66458866,0.000109,2]
[380402625,1755741032303,-1960.93464976,0.000109,2]
[380402626,1755741032313,-153.0,0.000109,2]
[380402627,1755741032323,-1800.0,0.000109,3]
[380402628,1755741032332,-310.0,0.00010932,2]
[380402629,1755741032341,-300.0,0.00010932,2]
[380402630,1755741032351,-250.0,0.00010932,2]
[380402631,1755741032360,-150.0,0.00010932,2]
[380402632,1755741032369,-300.0,0.00010952,2]
[380402633,1755741032378,-310.0,0.00010952,2]
[380402634,1755741032388,-250.0,0.00010952,2]
[380402635,1755741032397,-150.0,0.00010952,2]
[380402636,1755741032406,-2000.0,0.00010959,2]
[380402637,1755741032415,-1001.0,0.0001098,2]
[380402638,1755741032425,-296.92399692,0.00010993,2]
[380402639,1755741032434,-150.0,0.00010996,2]
[380402640,1755741032443,-4000.01,0.00010998,2]
[380402641,1755741032453,-354.55355926,0.00010998,2]
[380402642,1755741032463,-208.07903264,0.00010998,2]
[380402643,1755741032472,-179.31483884,0.00010998,2]
[380402644,1755741032481,-500.0,0.00010998,2]
[380402645,1755741032491,-171.47635145,0.00010998,2]
[380402646,1755741032500,-500.0,0.00010998,2]
[380402647,1755741032510,-280.00645983,0.00010998,2]
[380402648,1755741032519,-177.45133106,0.00010998,2]
[380402649,1755741032528,-155.181,0.00010999,2]
[380402650,1755741032538,-547.00399742,0.00010999,2]
[380402651,1755741032547,-99374.74754322,0.00011,2]
[380402652,1755741032559,-7522.18322664,0.00011,2]
[380402653,1755741032571,-353.60987202,0.00011,2]
[380402654,1755741032591,-5502.112,0.00011,2]
[380402658,1755741037410,-174.48,9.882e-05,2]
[380402659,1755741037420,-153.37854665,0.000109,2]
[380402660,1755741037429,-27.45419522,0.00011,2]
[380402661,1755741037441,-3296.01226809,0.00011,2]
[380402662,1755741037466,-10466.84572514,0.00011,2]
[380402670,1755741039502,-937.16257756,0.00011,2]
[380402700,1755741045371,-516.2534842,0.00010619,2]
[380402701,1755741045380,-34706.62863476,0.00011,2]
[380402702,1755741045558,-4296.75088854,0.00011,2]
[380402703,1755741045682,-48112.53314148,0.00011,2]
[380402704,1755741045775,-19153.03003554,0.00011,2]
[380402705,1755741045829,-1298.50371037,0.00011,2]
[380402706,1755741045841,-417.95823573,0.00011,2]
[380402707,1755741045854,-1695.69731135,0.00011,2]
[380402710,1755741156560,-150.7924,9.838e-05,2]
[380402711,1755741156582,-140.884748,9.88e-05,2]
[380402712,1755741158754,-151.0,9.88e-05,2]
[380402713,1755741163252,-284.85,9.88e-05,2]
[380402714,1755741163437,-11.205252,9.88e-05,2]
[380402715,1755741230831,1000.0,7.1e-07,120]
[380402716,1755741239008,1000.0,7.1e-07,120]
[380402717,1755741245962,1000.0,7.1e-07,120]
[380402718,1755741257288,1000.0,7.1e-07,120]
[380402719,1755741266310,1000.0,7.1e-07,120]
[380402720,1755741277756,1000.0,7.1e-07,120]
[380402721,1755741286437,1000.0,7.1e-07,120]
[380402722,1755741297212,1000.0,7.1e-07,120]
[380402723,1755741308468,471.13801221,8.2e-07,2]
[380402724,1755741320254,1000.0,7.1e-07,120]
[380402726,1755741328400,1000.0,7.1e-07,120]
[380402727,1755741337627,1000.0,7.1e-07,120]
[380402728,1755741348923,1000.0,7.1e-07,120]
[380402729,1755741359831,1000.0,7.1e-07,120]
[380402730,1755741372616,1000.0,7.1e-07,120]
[380402731,1755741382838,1000.0,7.1e-07,120]
[380402732,1755741396756,1000.0,7.1e-07,120]
[380402733,1755741406258,1000.0,7.1e-07,120]
[380402734,1755741420606,1000.0,7.1e-07,120]
[380402735,1755741431495,1000.0,7.1e-07,120]
[380402736,1755741439610,1000.0,7.1e-07,120]
[380402737,1755741449496,1000.0,7.1e-07,120]
[380402738,1755741460869,1000.0,7.1e-07,120]
[380402739,1755741472375,1000.0,7.1e-07,120]
[380402740,1755741486242,1000.0,7.1e-07,120]
[380402741,1755741494030,1000.0,7.1e-07,120]
[380402742,1755741502033,1000.0,7.1e-07,120]
[380402743,1755741510379,1000.0,7.1e-07,120]
[380402744,1755741519516,1000.0,7.1e-07,120]
[380402745,1755741527734,1000.0,7.1e-07,120]
[380402746,1755741537775,1000.0,7.1e-07,120]
[380402747,1755741546813,1000.0,7.1e-07,120]
[380402748,1755741555992,1000.0,7.1e-07,120]
[380402749,1755741571004,1000.0,7.1e-07,120]
[380402750,1755741580546,1000.0,7.1e-07,120]
[380402751,1755741588663,1000.0,7.1e-07,120]
[380402752,1755741597476,1000.0,7.1e-07,120]
[380402753,1755741606354,1000.0,7.1e-07,120]
[380402754,1755741617769,1000.0,7.1e-07,120]
[380402755,1755741624572,-167.491163,9.694e-05,2]
[380402756,1755741626461,1000.0,7.1e-07,120]
[380402757,1755741631024,-458.382664,9.694e-05,2]
[380402758,1755741633431,-151.0,9.694e-05,2]
[380402759,1755741636058,1000.0,7.1e-07,120]
[380402760,1755741636798,-223.126173,9.694e-05,2]
[380402761,1755741636826,-1499.84,9.734e-05,2]
[380402762,1755741638114,-155.96,0.00010127,2]
[380402763,1755741638151,-155.96,0.00010139,2]
[380402764,1755741638180,-155.96,0.00010151,2]
[380402765,1755741638207,-155.96,0.00010163,2]
[380402766,1755741638233,-155.96,0.00010175,2]
[380402767,1755741638264,-155.96,0.00010187,2]
[380402768,1755741638290,-155.96,0.00010199,2]
[380402769,1755741638316,-155.96,0.00010211,2]
[380402770,1755741638344,-155.96,0.00010223,2]
[380402771,1755741638370,-155.96,0.00010235,2]
[380402772,1755741638395,-155.96,0.00010247,2]
[380402773,1755741638419,-155.96,0.00010259,2]
[380402774,1755741638446,-155.96,0.00010271,2]
[380402775,1755741638471,-1852.42,0.00010271,2]
[380402776,1755741638496,-402.32187762,0.00010365,2]
[380402777,1755741638523,-1476.43423,0.00010412,2]
[380402778,1755741638554,-278.48859635,0.00010465,2]
[380402779,1755741638580,-239.0,0.00010565,2]
[380402780,1755741638605,-333.13,0.00010598,2]
[380402781,1755741638630,-300.0,0.00010888,2]
[380402782,1755741638657,-390.72529603,0.00010888,2]
[380402783,1755741647515,1000.0,7.1e-07,120]
[380402784,1755741658445,1000.0,7.1e-07,120]
[380402785,1755741668022,1000.0,7.1e-07,120]
[380402786,1755741676267,1000.0,7.1e-07,120]
[380402787,1755741689305,1000.0,7.1e-07,120]
[380402788,1755741699820,1000.0,7.1e-07,120]
[380402789,1755741712155,1000.0,7.1e-07,120]
[380402790,1755741713914,-225.43155847,0.0001,3]
[380402791,1755741722849,1000.0,7.1e-07,120]
[380402792,1755741731952,1000.0,7.1e-07,120]
[380402793,1755741741050,1000.0,7.1e-07,120]
[380402794,1755741750439,1000.0,7.1e-07,120]
[380402795,1755741757630,1000.0,7.1e-07,120]
[380402796,1755741765261,1000.0,7.1e-07,120]
[380402797,1755741773591,1000.0,7.1e-07,120]
[380402804,1755742156477,426.0,0.00027,120]
[380402808,1755742230413,-200.0,9.89e-05,2]
[380402824,1755742232272,-1970.44870171,9.97e-05,2]
[380402825,1755742232284,-1156.329766,9.984e-05,2]
[380402826,1755742232295,-885.940234,9.984e-05,2]
[380402827,1755742232305,-29.05844153,0.0001,3]
[380402828,1755742232314,-160.94,0.00010008,2]
[380402829,1755742232323,-165.99,0.00010079,2]
[380402830,1755742232332,-418.08,0.000101,2]
[380402831,1755742232342,-228.22,0.00010131,2]
[380402832,1755742232351,-250.0,0.00010155,2]
[380402833,1755742232360,-234.01132447,0.00010166,2]
[380402834,1755742232447,-975.12867553,0.00010166,2]
[380402835,1755742232466,-169.45,0.0001046,2]
[380402836,1755742232481,-406.0,0.00010676,2]
[380402837,1755742232490,-400.0,0.000107,3]
[380402838,1755742232500,-190.55699314,0.00010739,2]
[380402839,1755742232511,-525.57091347,0.00010748,2]
[380402840,1755742232520,-150.0,0.000108,2]
[380402841,1755742232530,-800.0,0.000108,3]
[380402842,1755742232539,-1200.0,0.00010887,2]
[380402843,1755742232549,-152.15470954,0.00010888,2]
[380402844,1755742232558,-466.0,0.00010888,2]
[380402845,1755742232567,-300.0,0.00010888,2]
[380402846,1755742232577,-300.0,0.00010888,2]
[380402847,1755742232587,-4242.33401262,0.0001089,2]
[380402848,1755742232598,-1900.80211902,0.0001089,2]
[380402849,1755742232610,-696.2334,0.0001089,2]
[380402850,1755742232651,-3848.56701966,0.0001089,2]
[380402852,1755742232699,-1400.0,0.0001089,2]
[380402871,1755742237629,-288.35444644,0.0001089,2]
[380402873,1755742237643,-771.91215,0.0001089,2]
[380402879,1755742237786,-651.0,0.0001089,2]
[380402880,1755742237904,-715.05821124,0.0001089,2]
[380402881,1755742237916,-590.58512303,0.0001089,2]
[380402883,1755742237969,-7093.18758703,0.0001089,2]
[380402885,1755742237979,-522.76777214,0.00010899,2]
[380402887,1755742237988,-4998.1536322,0.000109,2]
[380402889,1755742237997,-1200.0,0.000109,3]
[380402890,1755742238007,-153.37854658,0.000109,2]
[380402891,1755742238016,-1000.0,0.00010906,2]
[380402893,1755742238026,-2000.0,0.00010959,2]
[380402894,1755742238036,-200.0,0.00010959,2]
[380402895,1755742238045,-306.83373004,0.00010972,2]
[380402896,1755742238072,-353.67806603,0.00010972,2]
[380402921,1755742240333,-470.41108695,0.00010972,2]
[380402923,1755742240343,-16.72647145,0.00010972,2]
[380402925,1755742240355,-133.27352855,0.00010972,2]
[380402927,1755742240365,-183.95547135,0.00010973,2]
[380402941,1755742240491,-323.46805945,0.00010973,2]
[380402950,1755742240566,-3.86420753,0.00010973,2]
[380402952,1755742240575,-500.0,0.00010973,2]
[380402954,1755742240585,-155.30376206,0.00010973,2]
[380402956,1755742240595,-464.25805392,0.00010973,2]
[380403005,1755742243861,-35.74194608,0.00010973,2]
[380403006,1755742243870,-219.30179782,0.00010973,2]
[380403007,1755742243879,-404.51225157,0.00010973,2]
[380403008,1755742243891,-95.48774843,0.00010973,2]
[380403009,1755742243899,-500.0,0.00010973,2]
[380403010,1755742243909,-500.0,0.00010973,2]
[380403011,1755742243918,-500.0,0.00010973,2]
[380403012,1755742243927,-778.45565896,0.00010991,3]
[380403013,1755742243973,-247.84197881,0.00010991,3]
[380403014,1755742243982,-500.0,0.00010991,2]
[380403015,1755742243992,-288.97916818,0.00010991,2]
[380403016,1755742244002,-500.0,0.00010991,2]
[380403017,1755742244011,-500.0,0.00010991,2]
[380403018,1755742244022,-355.17333929,0.00010991,2]
[380403019,1755742244032,-500.0,0.00010991,2]
[380403020,1755742244042,-552.97305853,0.00010991,2]
[380403021,1755742244052,-163.02224866,0.00010991,2]
[380403022,1755742244061,-428.99879111,0.00010991,2]
[380403023,1755742244071,-432.86124852,0.00010991,2]
[380403024,1755742244081,-323.42062697,0.00010991,2]
[380403025,1755742244090,-193.70655708,0.00010991,2]
[380403026,1755742244099,-500.0,0.00010991,2]
[380403027,1755742244110,-231.22959789,0.00010991,2]
[380403028,1755742244122,-384.75045313,0.00010991,2]
[380403029,1755742244132,-615.85729274,0.00010992,2]
[380403030,1755742244146,-149525.49582445,0.00010992,2]
[380403031,1755742244208,-2185.92647066,0.00010992,2]
[380403032,1755742244282,-93097.90800805,0.00010992,2]
[380403033,1755742244292,-4155.2829183,0.00010992,2]
[380403034,1755742244302,-151.0,0.00010992,2]
[380403035,1755742244312,-151.48095487,0.00010992,2]
[380403036,1755742244322,-168.57356708,0.00010998,2]
[380403037,1755742244332,-156.70178085,0.00010998,2]
[380403038,1755742244342,-492.93052498,0.00010998,2]
[380403039,1755742244352,-257.55283985,0.00010998,2]
[380403040,1755742244362,-760097.90508368,0.00010999,2]
[380403041,1755742244371,-666.0,0.00010999,2]
[380403042,1755742244380,-666.0,0.00010999,2]
[380403043,1755742244389,-666.0,0.00010999,2]
[380403044,1755742244399,-1026.29763777,0.00010999,3]
[380403045,1755742244408,-1026.29763777,0.00010999,3]
[380403046,1755742244418,-500.0,0.00010999,2]
[380403047,1755742244428,-500.0,0.00010999,2]
[380403048,1755742244438,-199.0091713,0.00010999,2]
[380403049,1755742244447,-151.0,0.00010999,2]
[380403050,1755742244462,-151.0,0.00010999,2]
[380403051,1755742244471,-12000.0,0.00010999,2]
[380403052,1755742244481,-306.706926,0.00010999,2]
[380403053,1755742244490,-12000.0,0.00010999,2]
[380403054,1755742244499,-151.0,0.00010999,2]
[380403055,1755742244508,-306.706926,0.00010999,2]
[380403056,1755742244518,-151.0,0.00010999,2]
[380403057,1755742244529,-12000.0,0.00010999,2]
[380403058,1755742244539,-306.706926,0.00010999,2]
[380403059,1755742244550,-151.0,0.00010999,2]
[380403060,1755742244559,-151.0,0.00010999,2]
[380403061,1755742244568,-12000.0,0.00010999,2]
[380403062,1755742244577,-151.0,0.00010999,2]
[380403063,1755742244586,-306.706926,0.00010999,2]
[380403064,1755742244595,-12000.0,0.00010999,2]
[380403065,1755742244605,-375.627776,0.00010999,2]
[380403066,1755742244614,-151.0,0.00010999,2]
[380403067,1755742244623,-151.0,0.00010999,2]
[380403068,1755742244633,-227.899183,0.00010999,2]
[380403069,1755742244642,-375.627776,0.00010999,2]
[380403070,1755742244651,-151.0,0.00010999,2]
[380403071,1755742244660,-375.627776,0.00010999,2]
[380403072,1755742244669,-151.0,0.00010999,2]
[380403073,1755742244677,-151.0,0.00010999,2]
[380403074,1755742244687,-221.355225,0.00010999,2]
[380403075,1755742244696,-151.0,0.00010999,2]
[380403076,1755742244705,-375.627776,0.00010999,2]
[380403077,1755742244715,-151.0,0.00010999,2]
[380403078,1755742244724,-151.0,0.00010999,2]
[380403079,1755742244734,-221.355225,0.00010999,2]
[380403080,1755742244743,-151.0,0.00010999,2]
[380403081,1755742244753,-151.0,0.00010999,2]
[380403082,1755742244762,-221.355225,0.00010999,2]
[380403083,1755742244771,-210.547313,0.00010999,2]
[380403084,1755742244782,-151.0,0.00010999,2]
[380403085,1755742244793,-151.0,0.00010999,2]
[380403086,1755742244803,-221.355225,0.00010999,2]
[380403087,1755742244812,-151.0,0.00010999,2]
[380403088,1755742244821,-210.547313,0.00010999,2]
[380403089,1755742244831,-151.0,0.00010999,2]
[380403090,1755742244840,-184.41064,0.00010999,2]
[380403091,1755742244850,-151.0,0.00010999,2]
[380403092,1755742244859,-298.392762,0.00010999,2]
[380403093,1755742244868,-210.547313,0.00010999,2]
[380403094,1755742244877,-151.0,0.00010999,2]
[380403095,1755742244886,-184.41064,0.00010999,2]
[380403096,1755742244895,-210.547313,0.00010999,2]
[380403097,1755742244904,-151.0,0.00010999,2]
[380403098,1755742244914,-184.41064,0.00010999,2]
[380403099,1755742244923,-184.41064,0.00010999,2]
[380403100,1755742244932,-151.0,0.00010999,2]
[380403101,1755742244941,-151.0,0.00010999,2]
[380403102,1755742244950,-218.728093,0.00010999,2]
[380403103,1755742244959,-218.728093,0.00010999,2]
[380403104,1755742244968,-218.728093,0.00010999,2]
[380403105,1755742244977,-151.0,0.00010999,2]
[380403106,1755742244987,-218.728093,0.00010999,2]
[380403107,1755742244996,-151.0,0.00010999,2]
[380403108,1755742245006,-151.0,0.00010999,2]
[380403109,1755742245016,-151.0,0.00010999,2]
[380403110,1755742245026,-368.548493,0.00010999,2]
[380403111,1755742245035,-151.0,0.00010999,2]
[380403112,1755742245047,-368.548493,0.00010999,2]
[380403113,1755742245057,-151.0,0.00010999,2]
[380403114,1755742245067,-368.548493,0.00010999,2]
[380403115,1755742245076,-151.0,0.00010999,2]
[380403116,1755742245086,-368.548493,0.00010999,2]
[380403117,1755742245096,-151.0,0.00010999,2]
[380403118,1755742245106,-151.0,0.00010999,2]
[380403119,1755742245115,-151.0,0.00010999,2]
[380403120,1755742245125,-151.0,0.00010999,2]
[380403121,1755742245135,-151.0,0.00010999,2]
[380403122,1755742245144,-151.0,0.00010999,2]
[380403123,1755742245154,-3312.292619,0.00010999,2]
[380403124,1755742245163,-151.0,0.00010999,2]
[380403125,1755742245172,-151.0,0.00010999,2]
[380403126,1755742245182,-158.290819,0.00010999,2]
[380403127,1755742245192,-3312.292619,0.00010999,2]
[380403128,1755742245201,-262.827337,0.00010999,2]
[380403129,1755742245211,-212.590474,0.00010999,2]
[380403130,1755742245221,-151.0,0.00010999,2]
[380403131,1755742245231,-243.624429,0.00010999,2]
[380403132,1755742245242,-212.590474,0.00010999,2]
[380403133,1755742245251,-151.0,0.00010999,2]
[380403134,1755742245261,-151.366327,0.00010999,2]
[380403135,1755742245270,-243.624429,0.00010999,2]
[380403136,1755742245280,-212.590474,0.00010999,2]
[380403137,1755742245291,-151.0,0.00010999,2]
[380403138,1755742245302,-329.147374,0.00010999,2]
[380403139,1755742245312,-243.624429,0.00010999,2]
[380403140,1755742245322,-329.147374,0.00010999,2]
[380403141,1755742245332,-396.485062,0.00010999,2]
[380403142,1755742245342,-212.590474,0.00010999,2]
[380403143,1755742245351,-243.624429,0.00010999,2]
[380403144,1755742245361,-396.485062,0.00010999,2]
[380403145,1755742245371,-329.147374,0.00010999,2]
[380403146,1755742245382,-272.394242,0.00010999,2]
[380403147,1755742245392,-151.0,0.00010999,2]
[380403148,1755742245402,-329.147374,0.00010999,2]
[380403149,1755742245412,-3312.292619,0.00010999,2]
[380403150,1755742245422,-396.485062,0.00010999,2]
[380403151,1755742245431,-272.394242,0.00010999,2]
[380403152,1755742245441,-3312.292619,0.00010999,2]
[380403153,1755742245452,-396.485062,0.00010999,2]
[380403154,1755742245465,-272.394242,0.00010999,2]
[380403155,1755742245475,-666.0,0.00010999,2]
[380403156,1755742245485,-24911.93289791,0.00011,2]
[380403157,1755742245495,-5472.06,0.00011,2]
[380403159,1755742245506,-151.0,0.00011,2]
[380403160,1755742245515,-151.0,0.00011,2]
[380403161,1755742245525,-255.885381,0.00011,2]
[380403162,1755742245535,-151.0,0.00011,2]
[380403163,1755742245547,-151.0,0.00011,2]
[380403164,1755742245557,-151.0,0.00011,2]
[380403165,1755742245566,-151.0,0.00011,2]
[380403166,1755742245575,-151.0,0.00011,2]
[380403167,1755742245585,-151.0,0.00011,2]
[380403168,1755742245594,-151.0,0.00011,2]
[380403169,1755742245604,-151.0,0.00011,2]
[380403170,1755742245613,-151.0,0.00011,2]
[380403171,1755742245622,-151.0,0.00011,2]
[380403172,1755742245631,-151.0,0.00011,2]
[380403173,1755742245641,-254.765727,0.00011,2]
[380403174,1755742245651,-151.0,0.00011,2]
[380403175,1755742245660,-151.0,0.00011,2]
[380403176,1755742245669,-151.0,0.00011,2]
[380403177,1755742245678,-151.0,0.00011,2]
[380403178,1755742245687,-151.0,0.00011,2]
[380403179,1755742245696,-151.0,0.00011,2]
[380403180,1755742245706,-151.0,0.00011,2]
[380403181,1755742245715,-151.0,0.00011,2]
[380403182,1755742245724,-151.0,0.00011,2]
[380403183,1755742245733,-151.0,0.00011,2]
[380403184,1755742245742,-234.100027,0.00011,2]
[380403185,1755742245751,-151.0,0.00011,2]
[380403186,1755742245762,-234.100027,0.00011,2]
[380403187,1755742245771,-208.105895,0.00011,2]
[380403188,1755742245780,-234.100027,0.00011,2]
[380403189,1755742245789,-151.0,0.00011,2]
[380403190,1755742245801,-208.105895,0.00011,2]
[380403191,1755742245810,-234.100027,0.00011,2]
[380403192,1755742245819,-151.0,0.00011,2]
[380403193,1755742245828,-208.105895,0.00011,2]
[380403194,1755742245838,-234.100027,0.00011,2]
[380403195,1755742245847,-228.247417,0.00011,2]
[380403196,1755742245856,-208.105895,0.00011,2]
[380403197,1755742245865,-234.100027,0.00011,2]
[380403198,1755742245874,-323.098526,0.00011,2]
[380403199,1755742245884,-208.105895,0.00011,2]
[380403200,1755742245893,-234.100027,0.00011,2]
[380403201,1755742245903,-323.098526,0.00011,2]
[380403202,1755742245912,-208.105895,0.00011,2]
[380403203,1755742245922,-234.100027,0.00011,2]
[380403204,1755742245930,-208.105895,0.00011,2]
[380403205,1755742245940,-323.098526,0.00011,2]
[380403206,1755742245949,-234.100027,0.00011,2]
[380403207,1755742245958,-208.105895,0.00011,2]
[380403208,1755742245967,-323.098526,0.00011,2]
[380403209,1755742245976,-234.100027,0.00011,2]
[380403210,1755742245985,-208.105895,0.00011,2]
[380403211,1755742245995,-323.098526,0.00011,2]
[380403212,1755742246004,-208.105895,0.00011,2]
[380403213,1755742246013,-323.098526,0.00011,2]
[380403214,1755742246023,-234.100027,0.00011,2]
[380403215,1755742246032,-208.105895,0.00011,2]
[380403216,1755742246041,-323.098526,0.00011,2]
[380403217,1755742246053,-234.100027,0.00011,2]
[380403218,1755742246062,-208.105895,0.00011,2]
[380403219,1755742246071,-323.098526,0.00011,2]
[380403220,1755742246081,-234.100027,0.00011,2]
[380403221,1755742246090,-208.105895,0.00011,2]
[380403222,1755742246100,-323.098526,0.00011,2]
[380403223,1755742246110,-234.100027,0.00011,2]
[380403224,1755742246120,-208.105895,0.00011,2]
[380403225,1755742246129,-151.0,0.00011,2]
[380403226,1755742246138,-323.098526,0.00011,2]
[380403227,1755742246147,-208.105895,0.00011,2]
[380403228,1755742246158,-234.100027,0.00011,2]
[380403229,1755742246170,-151.0,0.00011,2]
[380403230,1755742246180,-208.105895,0.00011,2]
[380403231,1755742246190,-323.098526,0.00011,2]
[380403232,1755742246200,-192.918564,0.00011,2]
[380403233,1755742246211,-234.100027,0.00011,2]
[380403234,1755742246224,-208.105895,0.00011,2]
[380403235,1755742246235,-323.098526,0.00011,2]
[380403236,1755742246245,-234.100027,0.00011,2]
[380403237,1755742246254,-208.105895,0.00011,2]
[380403238,1755742246264,-234.100027,0.00011,2]
[380403239,1755742246273,-323.098526,0.00011,2]
[380403240,1755742246283,-208.105895,0.00011,2]
[380403241,1755742246295,-234.100027,0.00011,2]
[380403242,1755742246304,-323.098526,0.00011,2]
[380403243,1755742246314,-208.105887,0.00011,2]
[380403244,1755742246323,-234.100031,0.00011,2]
[380403245,1755742246333,-323.098526,0.00011,2]
[380403246,1755742246342,-323.098526,0.00011,2]
[380403247,1755742246353,-323.098526,0.00011,2]
[380403248,1755742246363,-323.098526,0.00011,2]
[380403249,1755742246373,-151.0,0.00011,2]
[380403250,1755742246383,-323.098526,0.00011,2]
[380403251,1755742246392,-151.0,0.00011,2]
[380403252,1755742246401,-151.0,0.00011,2]
[380403253,1755742246411,-151.0,0.00011,2]
[380403254,1755742246421,-151.0,0.00011,2]
[380403255,1755742246430,-151.0,0.00011,2]
[380403256,1755742246440,-151.0,0.00011,2]
[380403257,1755742246450,-151.0,0.00011,2]
[380403258,1755742246463,-151.0,0.00011,2]
[380403259,1755742246473,-151.0,0.00011,2]
[380403260,1755742246482,-151.0,0.00011,2]
[380403261,1755742246492,-184.373997,0.00011,2]
[380403262,1755742246502,-323.098516,0.00011,2]
[380403263,1755742246515,-151.0,0.00011,2]
[380403264,1755742246524,-151.0,0.00011,2]
[380403265,1755742246534,-151.0,0.00011,2]
[380403266,1755742246544,-151.0,0.00011,2]
[380403267,1755742246554,-151.0,0.00011,2]
[380403268,1755742246563,-151.0,0.00011,2]
[380403269,1755742246573,-151.0,0.00011,2]
[380403270,1755742246583,-151.0,0.00011,2]
[380403271,1755742246593,-151.0,0.00011,2]
[380403272,1755742246603,-151.0,0.00011,2]
[380403273,1755742246612,-151.0,0.00011,2]
[380403274,1755742246621,-151.0,0.00011,2]
[380403275,1755742246631,-151.0,0.00011,2]
[380403276,1755742246640,-151.0,0.00011,2]
[380403277,1755742246650,-162.645087,0.00011,2]
[380403278,1755742246659,-151.0,0.00011,2]
[380403279,1755742246668,-151.0,0.00011,2]
[380403280,1755742246678,-151.0,0.00011,2]
[380403281,1755742246687,-151.0,0.00011,2]
[380403282,1755742246697,-151.0,0.00011,2]
[380403283,1755742246706,-151.0,0.00011,2]
[380403284,1755742246715,-151.0,0.00011,2]
[380403285,1755742246725,-151.0,0.00011,2]
[380403286,1755742246734,-268.820802,0.00011,2]
[380403287,1755742246743,-151.0,0.00011,2]
[380403288,1755742246753,-151.0,0.00011,2]
[380403289,1755742246762,-151.0,0.00011,2]
[380403290,1755742246772,-151.0,0.00011,2]
[380403291,1755742246782,-151.0,0.00011,2]
[380403292,1755742246791,-151.0,0.00011,2]
[380403293,1755742246801,-151.0,0.00011,2]
[380403294,1755742246810,-151.0,0.00011,2]
[380403295,1755742246820,-183.331519,0.00011,2]
[380403296,1755742246829,-183.331519,0.00011,2]
[380403297,1755742246838,-183.331519,0.00011,2]
[380403298,1755742246848,-183.331519,0.00011,2]
[380403299,1755742246857,-183.331519,0.00011,2]
[380403300,1755742246867,-183.331519,0.00011,2]
[380403301,1755742246876,-183.331519,0.00011,2]
[380403302,1755742246886,-183.331519,0.00011,2]
[380403303,1755742246896,-183.331519,0.00011,2]